[Event "*** Titled Tuesday 3|2 Blitz"]
[Site "Chess.com"]
[Date "2017.03.07"]
[Round "9"]
[White "DeviatkinAndrey"]
[Black "Yaacovn"]
[Result "0-1"]
[WhiteElo "2540"]
[BlackElo "2603"]
[TimeControl "180+2"]
[EndTime "15:09:57 PST"]
[Termination "Yaacovn won by resignation"]

1. c4 {[%clk 0:03:01.3]} 1... b6 {[%clk 0:02:59.1]} 2. g3 {[%clk 0:02:58]} 2...
Bb7 {[%clk 0:03:00.5]} 3. Nf3 {[%clk 0:02:59.2]} 3... Bxf3 {[%clk 0:03:00.4]} 4.
exf3 {[%clk 0:03:00.1]} 4... c5 {[%clk 0:03:02.3]} 5. d4 {[%clk 0:03:00.1]} 5...
cxd4 {[%clk 0:03:03.2]} 6. Qxd4 {[%clk 0:03:00.3]} 6... Nc6 {[%clk 0:03:05.1]}
7. Qd1 {[%clk 0:02:53.9]} 7... e6 {[%clk 0:03:06.4]} 8. Nc3 {[%clk 0:02:45.6]}
8... Nf6 {[%clk 0:03:07.4]} 9. Bg2 {[%clk 0:02:45.9]} 9... Bb4 {[%clk
0:03:05.5]} 10. Bd2 {[%clk 0:02:45.9]} 10... O-O {[%clk 0:02:58.7]} 11. a3
{[%clk 0:02:40.3]} 11... Bxc3 {[%clk 0:02:48.3]} 12. Bxc3 {[%clk 0:02:41]} 12...
d5 {[%clk 0:02:50.2]} 13. f4 {[%clk 0:02:40.6]} 13... Rc8 {[%clk 0:02:50.2]} 14.
cxd5 {[%clk 0:02:07.5]} 14... Nxd5 {[%clk 0:02:48.3]} 15. Rc1 {[%clk 0:01:56]}
15... Nxc3 {[%clk 0:02:45.8]} 16. Rxc3 {[%clk 0:01:54.7]} 16... Qxd1+ {[%clk
0:02:42.5]} 17. Kxd1 {[%clk 0:01:55.9]} 17... Rfd8+ {[%clk 0:02:44.1]} 18. Kc1
{[%clk 0:01:52.1]} 18... Nd4 {[%clk 0:02:45.4]} 19. Rxc8 {[%clk 0:01:48.2]}
19... Rxc8+ {[%clk 0:02:47.3]} 20. Kb1 {[%clk 0:01:49.2]} 20... Kf8 {[%clk
0:02:35.1]} 21. Rc1 {[%clk 0:01:27.5]} 21... Rxc1+ {[%clk 0:02:34.5]} 22. Kxc1
{[%clk 0:01:28.2]} 22... Ke7 {[%clk 0:02:35.8]} 23. Kd2 {[%clk 0:01:29.1]} 23...
Kd6 {[%clk 0:02:27.8]} 24. Kd3 {[%clk 0:01:28.3]} 24... Nb5 {[%clk 0:02:24.3]}
25. a4 {[%clk 0:01:23.6]} 25... Nc7 {[%clk 0:02:24.7]} 26. b4 {[%clk 0:01:24.8]}
26... h6 {[%clk 0:01:59.9]} 27. Kc4 {[%clk 0:01:21.6]} 27... f6 {[%clk
0:01:56.8]} 28. Be4 {[%clk 0:01:15.9]} 28... Kd7 {[%clk 0:01:42]} 29. Bb7 {[%clk
0:01:11.2]} 29... Ke7 {[%clk 0:01:42.6]} 30. Kd4 {[%clk 0:01:08.9]} 30... Kd6
{[%clk 0:01:42.8]} 31. Bg2 {[%clk 0:01:07.9]} 31... Ke7 {[%clk 0:01:40.3]} 32.
Be4 {[%clk 0:00:57.6]} 32... Kd7 {[%clk 0:01:40.5]} 33. h4 {[%clk 0:00:53.6]}
33... Kd6 {[%clk 0:01:40.6]} 34. Bg2 {[%clk 0:00:53.1]} 34... Kd7 {[%clk
0:01:30.5]} 35. g4 {[%clk 0:00:49.8]} 35... Ke7 {[%clk 0:01:28.5]} 36. g5 {[%clk
0:00:46.5]} 36... Kd6 {[%clk 0:01:24.7]} 37. gxh6 {[%clk 0:00:40.6]} 37... gxh6
{[%clk 0:01:25.5]} 38. Be4 {[%clk 0:00:41.2]} 38... Na6 {[%clk 0:01:14.9]} 39.
Kc4 {[%clk 0:00:41.3]} 39... Nc7 {[%clk 0:01:15.1]} 40. Bf3 {[%clk 0:00:38.6]}
40... Kd7 {[%clk 0:01:16.1]} 41. Kd4 {[%clk 0:00:35.7]} 41... Ne8 {[%clk
0:01:16]} 42. Be2 {[%clk 0:00:31.4]} 42... Nd6 {[%clk 0:01:14.3]} 43. Bd3 {[%clk
0:00:32.6]} 43... Ke7 {[%clk 0:01:13.4]} 44. a5 {[%clk 0:00:27.7]} 44... Kd7
{[%clk 0:01:13.9]} 45. axb6 {[%clk 0:00:27.5]} 45... axb6 {[%clk 0:01:15.8]} 46.
b5 {[%clk 0:00:21.6]} 46... Nb7 {[%clk 0:01:04.1]} 47. Be4 {[%clk 0:00:21.6]}
47... Nc5 {[%clk 0:01:05.1]} 48. Bc2 {[%clk 0:00:21.1]} 48... Kd6 {[%clk
0:01:06.3]} 49. Bb1 {[%clk 0:00:18.1]} 49... Nd7 {[%clk 0:01:06]} 50. Be4 {[%clk
0:00:17.5]} 50... f5 {[%clk 0:01:00.6]} 51. Bc2 {[%clk 0:00:17.8]} 51... Nf6
{[%clk 0:01:01.7]} 52. Bb3 {[%clk 0:00:13.8]} 52... Ng4 {[%clk 0:01:02.5]} 53.
f3 {[%clk 0:00:14.2]} 53... Nf6 {[%clk 0:01:03.7]} 54. Ba2 {[%clk 0:00:14.9]}
54... h5 {[%clk 0:00:57.8]} 55. Bb3 {[%clk 0:00:10.6]} 55... Nd5 {[%clk
0:00:58.9]} 56. Bc4 {[%clk 0:00:08.1]} 56... Nxf4 {[%clk 0:00:59.5]} 57. Bf1
{[%clk 0:00:09.1]} 57... e5+ {[%clk 0:01:00]} 58. Kc3 {[%clk 0:00:08.9]} 58...
Ng6 {[%clk 0:00:59.4]} 59. Kd2 {[%clk 0:00:04.5]} 59... Nxh4 {[%clk 0:01:00.3]}
60. Be2 {[%clk 0:00:05.7]} 60... Ng6 {[%clk 0:01:01.4]} 61. Ke3 {[%clk
0:00:06.5]} 61... Nf4 {[%clk 0:01:02.3]} 62. Bc4 {[%clk 0:00:07.5]} 62... h4
{[%clk 0:01:03.5]} 63. Bf7 {[%clk 0:00:07.6]} 63... h3 {[%clk 0:01:04.6]} 64.
Bd5 {[%clk 0:00:06.3]} 64... h2 {[%clk 0:01:04.7]} 0-1

[Event "*** Titled Tuesday 3|2 Blitz"]
[Site "Chess.com"]
[Date "2017.03.07"]
[Round "9"]
[White "Vrolijk"]
[Black "manubibi"]
[Result "0-1"]
[WhiteElo "2301"]
[BlackElo "2407"]
[TimeControl "180+2"]
[EndTime "15:10:01 PST"]
[Termination "manubibi won by resignation"]

1. d4 {[%clk 0:03:02]} 1... Nf6 {[%clk 0:03:00.6]} 2. c4 {[%clk 0:03:00.7]} 2...
g6 {[%clk 0:03:01.2]} 3. f3 {[%clk 0:02:59.5]} 3... Bg7 {[%clk 0:03:02.5]} 4. e4
{[%clk 0:02:58.6]} 4... O-O {[%clk 0:03:03.7]} 5. Nc3 {[%clk 0:02:57.1]} 5... d6
{[%clk 0:03:05]} 6. Nge2 {[%clk 0:02:57.6]} 6... c5 {[%clk 0:03:06.3]} 7. d5
{[%clk 0:02:58.1]} 7... e6 {[%clk 0:03:06.1]} 8. Ng3 {[%clk 0:02:59.1]} 8...
exd5 {[%clk 0:03:07.1]} 9. cxd5 {[%clk 0:03:01]} 9... a6 {[%clk 0:03:07.7]} 10.
a4 {[%clk 0:03:01.7]} 10... h5 {[%clk 0:03:08.6]} 11. Bg5 {[%clk 0:03:02.9]}
11... Re8 {[%clk 0:03:08.3]} 12. Be2 {[%clk 0:03:02.5]} 12... Nbd7 {[%clk
0:03:04.2]} 13. O-O {[%clk 0:03:02.9]} 13... Qc7 {[%clk 0:03:02.4]} 14. Qd2
{[%clk 0:03:03.5]} 14... Rb8 {[%clk 0:02:56]} 15. Rac1 {[%clk 0:03:02.2]} 15...
Nh7 {[%clk 0:02:53]} 16. Be3 {[%clk 0:03:02.6]} 16... h4 {[%clk 0:02:54.2]} 17.
Nh1 {[%clk 0:03:03.5]} 17... f5 {[%clk 0:02:55.5]} 18. Nf2 {[%clk 0:03:02]}
18... Ne5 {[%clk 0:02:55.9]} 19. exf5 {[%clk 0:02:49.7]} 19... gxf5 {[%clk
0:02:55.6]} 20. Nh3 {[%clk 0:02:48.8]} 20... Ng6 {[%clk 0:02:15]} 21. Bf2 {[%clk
0:02:48.9]} 21... Bd7 {[%clk 0:02:10.4]} 22. Bd3 {[%clk 0:02:37.8]} 22... b5
{[%clk 0:02:06]} 23. axb5 {[%clk 0:02:38.6]} 23... axb5 {[%clk 0:02:07.9]} 24.
b4 {[%clk 0:02:40.1]} 24... c4 {[%clk 0:02:05.7]} 25. Bb1 {[%clk 0:02:39.2]}
25... Qd8 {[%clk 0:02:02.9]} 26. Rfe1 {[%clk 0:02:32.5]} 26... Qf6 {[%clk
0:02:03.6]} 27. Ne2 {[%clk 0:02:27.3]} 27... Qb2 {[%clk 0:01:54.9]} 28. Rc2
{[%clk 0:02:24.5]} 28... Qf6 {[%clk 0:01:32.4]} 29. Nd4 {[%clk 0:02:20.1]} 29...
Rxe1+ {[%clk 0:01:29.5]} 30. Qxe1 {[%clk 0:02:22]} 30... Re8 {[%clk 0:01:28.9]}
31. Re2 {[%clk 0:02:20]} 31... Rxe2 {[%clk 0:01:26.7]} 32. Qxe2 {[%clk
0:02:21.9]} 32... Ne7 {[%clk 0:01:22.5]} 33. Nf4 {[%clk 0:02:16.7]} 33... Qe5
{[%clk 0:01:23.5]} 34. g3 {[%clk 0:01:08.4]} 34... hxg3 {[%clk 0:01:23]} 35.
hxg3 {[%clk 0:01:08.5]} 35... Nxd5 {[%clk 0:01:13.6]} 36. Nxd5 {[%clk
0:01:06.1]} 36... Qxd5 {[%clk 0:01:15.5]} 37. Qe7 {[%clk 0:01:06.8]} 37... Bxd4
{[%clk 0:01:14.9]} 38. Qxd7 {[%clk 0:01:00]} 38... Bxf2+ {[%clk 0:01:13.6]} 39.
Kxf2 {[%clk 0:00:53.8]} 39... Qd2+ {[%clk 0:01:14.6]} 40. Kg1 {[%clk 0:00:54.4]}
40... Qe1+ {[%clk 0:01:04.6]} 41. Kg2 {[%clk 0:00:55.2]} 41... Qxb1 {[%clk
0:00:50.1]} 42. Qe6+ {[%clk 0:00:45.6]} 42... Kh8 {[%clk 0:00:48.2]} 43. Qe8+
{[%clk 0:00:39.9]} 43... Kg7 {[%clk 0:00:49.4]} 44. Qe7+ {[%clk 0:00:41.1]}
44... Kg6 {[%clk 0:00:47.4]} 45. Qe8+ {[%clk 0:00:37.2]} 45... Kf6 {[%clk
0:00:46.5]} 46. Qd8+ {[%clk 0:00:34.4]} 46... Kf7 {[%clk 0:00:47.2]} 47. Qd7+
{[%clk 0:00:34.3]} 47... Kg8 {[%clk 0:00:43.5]} 48. Qe6+ {[%clk 0:00:34.6]}
48... Kg7 {[%clk 0:00:42.3]} 49. Qe7+ {[%clk 0:00:34.1]} 49... Kg6 {[%clk
0:00:40.1]} 50. Qe8+ {[%clk 0:00:35.1]} 50... Kf6 {[%clk 0:00:40.1]} 51. Qh8+
{[%clk 0:00:30.7]} 51... Ke6 {[%clk 0:00:37.2]} 52. Qg8+ {[%clk 0:00:25.4]}
52... Ke5 {[%clk 0:00:35.2]} 53. Qxh7 {[%clk 0:00:18.4]} 53... Qxb4 {[%clk
0:00:36.2]} 54. Qg7+ {[%clk 0:00:19.2]} 54... Kd5 {[%clk 0:00:37.4]} 55. Qf7+
{[%clk 0:00:20.2]} 55... Kc6 {[%clk 0:00:38.1]} 56. Qxf5 {[%clk 0:00:19.1]}
56... Qd2+ {[%clk 0:00:35.2]} 57. Kh3 {[%clk 0:00:19.4]} 57... c3 {[%clk
0:00:36.8]} 58. Qc8+ {[%clk 0:00:18.9]} 58... Kb6 {[%clk 0:00:38.1]} 59. Qb8+
{[%clk 0:00:19.2]} 59... Kc5 {[%clk 0:00:39.7]} 60. Qc7+ {[%clk 0:00:20.4]}
60... Kb4 {[%clk 0:00:41]} 0-1

[Event "*** Titled Tuesday 3|2 Blitz"]
[Site "Chess.com"]
[Date "2017.03.07"]
[Round "9"]
[White "MatBobula"]
[Black "rithwik2002"]
[Result "1-0"]
[WhiteElo "2276"]
[BlackElo "1785"]
[TimeControl "180+2"]
[EndTime "15:10:13 PST"]
[Termination "MatBobula won by resignation"]

1. d4 {[%clk 0:03:02]} 1... Nf6 {[%clk 0:02:59.1]} 2. c4 {[%clk 0:03:02.4]} 2...
e6 {[%clk 0:03:00.1]} 3. Nf3 {[%clk 0:03:00.3]} 3... d5 {[%clk 0:03:01.5]} 4.
Nc3 {[%clk 0:03:00.2]} 4... Nbd7 {[%clk 0:03:02.7]} 5. Bg5 {[%clk 0:03:00.6]}
5... c6 {[%clk 0:03:03.1]} 6. e3 {[%clk 0:03:02]} 6... Qa5 {[%clk 0:03:04]} 7.
Nd2 {[%clk 0:03:03.2]} 7... dxc4 {[%clk 0:03:04]} 8. Bxf6 {[%clk 0:03:02]} 8...
Nxf6 {[%clk 0:03:04.6]} 9. Nxc4 {[%clk 0:03:03.3]} 9... Qc7 {[%clk 0:03:04.7]}
10. Be2 {[%clk 0:03:01.1]} 10... Be7 {[%clk 0:03:06.1]} 11. O-O {[%clk
0:03:02.2]} 11... O-O {[%clk 0:03:07.4]} 12. Qc2 {[%clk 0:03:03.6]} 12... b6
{[%clk 0:02:56.4]} 13. Rac1 {[%clk 0:03:03.4]} 13... Bb7 {[%clk 0:02:49.1]} 14.
Bf3 {[%clk 0:03:04.6]} 14... Rac8 {[%clk 0:02:46.2]} 15. Rfd1 {[%clk 0:03:04.2]}
15... Qb8 {[%clk 0:02:46.9]} 16. e4 {[%clk 0:02:59.4]} 16... Rfd8 {[%clk
0:02:39.1]} 17. e5 {[%clk 0:02:54.8]} 17... Nd5 {[%clk 0:02:25.3]} 18. Ne4
{[%clk 0:02:52.9]} 18... c5 {[%clk 0:02:12.6]} 19. Ncd6 {[%clk 0:02:45.3]} 19...
Bxd6 {[%clk 0:02:10.4]} 20. Nxd6 {[%clk 0:02:45.5]} 20... Rc7 {[%clk 0:02:04.8]}
21. h3 {[%clk 0:01:17.9]} 21... Nb4 {[%clk 0:01:56.6]} 22. Qb3 {[%clk
0:01:17.9]} 22... Bxf3 {[%clk 0:01:56.8]} 23. Qxf3 {[%clk 0:01:18.8]} 23... cxd4
{[%clk 0:01:41.9]} 24. Rxc7 {[%clk 0:01:06.5]} 24... Qxc7 {[%clk 0:01:43.8]} 25.
Rxd4 {[%clk 0:01:07.4]} 25... Nd5 {[%clk 0:01:35.4]} 26. Rc4 {[%clk 0:01:05.8]}
26... Qd7 {[%clk 0:01:14.7]} 27. Rg4 {[%clk 0:00:56.9]} 27... g6 {[%clk
0:00:47]} 28. Qg3 {[%clk 0:00:42]} 28... f6 {[%clk 0:00:24.4]} 29. Ne4 {[%clk
0:00:34]} 29... fxe5 {[%clk 0:00:18.6]} 30. Qxe5 {[%clk 0:00:34.2]} 30... Qg7
{[%clk 0:00:19.1]} 31. Rg5 {[%clk 0:00:25.4]} 31... Qxe5 {[%clk 0:00:19.5]} 32.
Rxe5 {[%clk 0:00:27.3]} 32... Kf7 {[%clk 0:00:19.2]} 33. g3 {[%clk 0:00:22.3]}
33... h6 {[%clk 0:00:19.7]} 34. Kf1 {[%clk 0:00:18.5]} 34... Nf6 {[%clk
0:00:19.6]} 35. Ke2 {[%clk 0:00:15.1]} 35... Rd4 {[%clk 0:00:18.1]} 36. Nxf6
{[%clk 0:00:14.9]} 36... Kxf6 {[%clk 0:00:20]} 37. Re3 {[%clk 0:00:16.5]} 37...
e5 {[%clk 0:00:15.1]} 38. Rc3 {[%clk 0:00:17.3]} 38... Rd7 {[%clk 0:00:14.9]}
39. a3 {[%clk 0:00:17.5]} 39... Ke6 {[%clk 0:00:11.9]} 40. Ke3 {[%clk
0:00:17.8]} 40... a5 {[%clk 0:00:11.5]} 41. Ke4 {[%clk 0:00:19]} 41... Rd4+
{[%clk 0:00:11.9]} 42. Ke3 {[%clk 0:00:20.4]} 42... Rd6 {[%clk 0:00:11.7]} 43.
Rc8 {[%clk 0:00:21.4]} 43... Kd5 {[%clk 0:00:11.5]} 44. Rh8 {[%clk 0:00:21.3]}
44... h5 {[%clk 0:00:11.8]} 45. h4 {[%clk 0:00:22.4]} 45... Kc4 {[%clk
0:00:12.6]} 46. Re8 {[%clk 0:00:14.2]} 46... Kb3 {[%clk 0:00:11]} 47. Rxe5
{[%clk 0:00:14.4]} 47... Kxb2 {[%clk 0:00:12.1]} 48. a4 {[%clk 0:00:15.7]} 48...
Ka3 {[%clk 0:00:12]} 49. Re4 {[%clk 0:00:17]} 49... Rc6 {[%clk 0:00:11.4]} 50.
f4 {[%clk 0:00:14.3]} 50... Rc3+ {[%clk 0:00:10.1]} 51. Kf2 {[%clk 0:00:15.5]}
51... Rc6 {[%clk 0:00:10.2]} 52. Kf3 {[%clk 0:00:16.1]} 52... Kb3 {[%clk
0:00:10.8]} 53. g4 {[%clk 0:00:14]} 53... Rc3+ {[%clk 0:00:10.5]} 54. Re3 {[%clk
0:00:11.6]} 54... hxg4+ {[%clk 0:00:11.1]} 55. Kf2 {[%clk 0:00:11.4]} 55... Rxe3
{[%clk 0:00:10.5]} 56. Kxe3 {[%clk 0:00:12.5]} 56... Kc4 {[%clk 0:00:11.6]} 57.
f5 {[%clk 0:00:13]} 57... gxf5 {[%clk 0:00:11.1]} 58. h5 {[%clk 0:00:14.2]}
58... Kd5 {[%clk 0:00:12.2]} 59. h6 {[%clk 0:00:15.7]} 59... Kd6 {[%clk
0:00:09.5]} 60. h7 {[%clk 0:00:16.9]} 1-0

[Event "*** Titled Tuesday 3|2 Blitz"]
[Site "Chess.com"]
[Date "2017.03.07"]
[Round "9"]
[White "AnthonyWirig"]
[Black "TheNextLevelFan"]
[Result "0-1"]
[WhiteElo "2536"]
[BlackElo "2396"]
[TimeControl "180+2"]
[EndTime "15:10:15 PST"]
[Termination "TheNextLevelFan won by resignation"]

1. e4 {[%clk 0:03:02]} 1... e5 {[%clk 0:03:00.5]} 2. Nf3 {[%clk 0:03:01.1]} 2...
Nc6 {[%clk 0:03:00.6]} 3. Bc4 {[%clk 0:03:01.5]} 3... Bc5 {[%clk 0:03:00.2]} 4.
d3 {[%clk 0:03:01.3]} 4... Nf6 {[%clk 0:03:00.4]} 5. c3 {[%clk 0:03:01.8]} 5...
Bb6 {[%clk 0:02:59.3]} 6. Bb3 {[%clk 0:03:02.3]} 6... O-O {[%clk 0:02:59.7]} 7.
h3 {[%clk 0:03:03]} 7... h6 {[%clk 0:03:00.1]} 8. Nbd2 {[%clk 0:03:03.9]} 8...
d6 {[%clk 0:02:35.2]} 9. Nf1 {[%clk 0:03:01.4]} 9... Be6 {[%clk 0:02:33.4]} 10.
Ng3 {[%clk 0:02:55.4]} 10... Qd7 {[%clk 0:02:26]} 11. Be3 {[%clk 0:02:41.3]}
11... Rad8 {[%clk 0:02:17.9]} 12. Qd2 {[%clk 0:02:32.3]} 12... Bxe3 {[%clk
0:02:13.2]} 13. fxe3 {[%clk 0:02:25.7]} 13... d5 {[%clk 0:02:12.2]} 14. exd5
{[%clk 0:02:27]} 14... Nxd5 {[%clk 0:02:11]} 15. O-O {[%clk 0:02:00.2]} 15...
Nb6 {[%clk 0:02:08.5]} 16. d4 {[%clk 0:01:58.9]} 16... Bxb3 {[%clk 0:01:54.2]}
17. axb3 {[%clk 0:01:59.4]} 17... Qe6 {[%clk 0:01:53.8]} 18. Qc2 {[%clk
0:01:46.4]} 18... a6 {[%clk 0:01:40.7]} 19. Rae1 {[%clk 0:01:37.9]} 19... Rfe8
{[%clk 0:01:20.5]} 20. b4 {[%clk 0:01:29.3]} 20... Nd7 {[%clk 0:01:03.8]} 21.
Re2 {[%clk 0:01:05.4]} 21... Nf8 {[%clk 0:00:45.1]} 22. Ref2 {[%clk 0:01:03.4]}
22... Qg6 {[%clk 0:00:42.7]} 23. Nf5 {[%clk 0:00:57]} 23... Rd7 {[%clk
0:00:26.4]} 24. N3h4 {[%clk 0:00:53.3]} 24... Qg5 {[%clk 0:00:27.7]} 25. Rf3
{[%clk 0:00:40.7]} 25... Ne6 {[%clk 0:00:28.4]} 26. Rg3 {[%clk 0:00:38.8]} 26...
Qh5 {[%clk 0:00:29.4]} 27. Qf2 {[%clk 0:00:28]} 27... Ng5 {[%clk 0:00:30.2]} 28.
Nxg7 {[%clk 0:00:16.3]} 28... Kxg7 {[%clk 0:00:31]} 29. Qf6+ {[%clk 0:00:13.5]}
29... Kh7 {[%clk 0:00:30.9]} 30. Nf5 {[%clk 0:00:14.6]} 30... Qg6 {[%clk
0:00:32.3]} 31. Nxh6 {[%clk 0:00:11.5]} 31... Qxf6 {[%clk 0:00:30.4]} 32. Rxf6
{[%clk 0:00:12.2]} 32... Ne4 {[%clk 0:00:27.3]} 33. Nxf7 {[%clk 0:00:06.7]}
33... Nxf6 {[%clk 0:00:26.4]} 34. Ng5+ {[%clk 0:00:08.6]} 34... Kg6 {[%clk
0:00:26.2]} 35. Ne6+ {[%clk 0:00:07.1]} 35... Kf7 {[%clk 0:00:25.7]} 36. Nc5
{[%clk 0:00:09]} 36... Rdd8 {[%clk 0:00:23.2]} 37. Nxb7 {[%clk 0:00:10.3]} 37...
Rb8 {[%clk 0:00:22.6]} 38. Nc5 {[%clk 0:00:12.2]} 38... exd4 {[%clk 0:00:20.9]}
39. exd4 {[%clk 0:00:14.1]} 39... Ne4 {[%clk 0:00:14.3]} 40. Rf3+ {[%clk
0:00:13.5]} 40... Kg6 {[%clk 0:00:15.8]} 41. Nxa6 {[%clk 0:00:15.1]} 41... Rbc8
{[%clk 0:00:14.3]} 42. b5 {[%clk 0:00:12.8]} 42... Ne7 {[%clk 0:00:15.2]} 43. c4
{[%clk 0:00:13.6]} 43... Nf5 {[%clk 0:00:15.8]} 44. d5 {[%clk 0:00:15]} 44...
Nd4 {[%clk 0:00:15.8]} 45. Rd3 {[%clk 0:00:14.2]} 45... Ne2+ {[%clk 0:00:15.5]}
46. Kh2 {[%clk 0:00:15.9]} 46... Nf4 {[%clk 0:00:16]} 47. Rd4 {[%clk 0:00:16.4]}
47... Kf5 {[%clk 0:00:16.6]} 48. Rd1 {[%clk 0:00:16.4]} 48... Rg8 {[%clk
0:00:16.7]} 49. g4+ {[%clk 0:00:16.4]} 49... Ke5 {[%clk 0:00:17.3]} 50. Nb4
{[%clk 0:00:17.6]} 50... Rh8 {[%clk 0:00:16.7]} 51. Nc6+ {[%clk 0:00:19.2]}
51... Kf6 {[%clk 0:00:18.1]} 52. Rd4 {[%clk 0:00:15.4]} 52... Rxh3+ {[%clk
0:00:18.1]} 53. Kg1 {[%clk 0:00:17.3]} 53... Ne2+ {[%clk 0:00:19.3]} 54. Kg2
{[%clk 0:00:18.9]} 54... Nxd4 {[%clk 0:00:19.3]} 55. Kxh3 {[%clk 0:00:20.5]}
55... Nxc6 {[%clk 0:00:20]} 56. dxc6 {[%clk 0:00:22.1]} 56... Nd2 {[%clk
0:00:20.2]} 57. c5 {[%clk 0:00:22.8]} 57... Rb8 {[%clk 0:00:20.9]} 58. b6 {[%clk
0:00:23.4]} 58... Nc4 {[%clk 0:00:16.2]} 59. bxc7 {[%clk 0:00:18.1]} 59... Rc8
{[%clk 0:00:17.2]} 60. b3 {[%clk 0:00:20]} 60... Ne5 {[%clk 0:00:17.2]} 61. b4
{[%clk 0:00:21.6]} 61... Rxc7 {[%clk 0:00:17.2]} 62. b5 {[%clk 0:00:23.5]} 62...
Nxc6 {[%clk 0:00:18.2]} 0-1

[Event "*** Titled Tuesday 3|2 Blitz"]
[Site "Chess.com"]
[Date "2017.03.07"]
[Round "9"]
[White "PelinGorki"]
[Black "Noukii"]
[Result "0-1"]
[WhiteElo "2423"]
[BlackElo "2652"]
[TimeControl "180+2"]
[EndTime "15:10:24 PST"]
[Termination "Noukii won by resignation"]

1. e4 {[%clk 0:03:02]} 1... e5 {[%clk 0:03:00]} 2. Nc3 {[%clk 0:03:00.4]} 2...
Nf6 {[%clk 0:03:00.3]} 3. Bc4 {[%clk 0:03:01.6]} 3... Bc5 {[%clk 0:02:57.5]} 4.
d3 {[%clk 0:03:02.8]} 4... d6 {[%clk 0:02:56.2]} 5. f4 {[%clk 0:03:04.2]} 5...
Nc6 {[%clk 0:02:57.4]} 6. Nf3 {[%clk 0:03:05.7]} 6... O-O {[%clk 0:02:58.1]} 7.
Na4 {[%clk 0:03:06.6]} 7... Bg4 {[%clk 0:02:39.5]} 8. Nxc5 {[%clk 0:03:05.7]}
8... dxc5 {[%clk 0:02:41.4]} 9. c3 {[%clk 0:03:04.6]} 9... Qd6 {[%clk
0:02:30.5]} 10. h3 {[%clk 0:03:02.9]} 10... Bxf3 {[%clk 0:02:13.2]} 11. Qxf3
{[%clk 0:03:04.8]} 11... Rad8 {[%clk 0:02:12.8]} 12. O-O {[%clk 0:02:56]} 12...
a6 {[%clk 0:02:13.2]} 13. a4 {[%clk 0:02:01]} 13... Kh8 {[%clk 0:02:00.8]} 14.
a5 {[%clk 0:01:51.7]} 14... Qe7 {[%clk 0:01:54.3]} 15. f5 {[%clk 0:01:41.9]}
15... Ne8 {[%clk 0:01:38]} 16. g4 {[%clk 0:01:42.6]} 16... Nd6 {[%clk
0:01:28.9]} 17. Bd5 {[%clk 0:01:36.8]} 17... Qh4 {[%clk 0:01:29.7]} 18. Be3
{[%clk 0:01:36.2]} 18... Ne7 {[%clk 0:01:30.2]} 19. Bf2 {[%clk 0:01:32.1]} 19...
Qh6 {[%clk 0:01:28.2]} 20. Bb3 {[%clk 0:01:23.1]} 20... c4 {[%clk 0:01:22.6]}
21. dxc4 {[%clk 0:01:22.5]} 21... f6 {[%clk 0:01:23.7]} 22. Be3 {[%clk
0:01:22.3]} 22... Qh4 {[%clk 0:01:23]} 23. c5 {[%clk 0:01:21.1]} 23... Nf7
{[%clk 0:01:23.6]} 24. Bxf7 {[%clk 0:01:19.6]} 24... Rxf7 {[%clk 0:01:24.4]} 25.
Rfd1 {[%clk 0:01:21.2]} 25... Rff8 {[%clk 0:01:21.8]} 26. Kg2 {[%clk 0:01:20.3]}
26... g6 {[%clk 0:01:18.1]} 27. Rxd8 {[%clk 0:01:20.2]} 27... Rxd8 {[%clk
0:01:18.6]} 28. Rd1 {[%clk 0:01:22.1]} 28... Rxd1 {[%clk 0:01:05.9]} 29. Qxd1
{[%clk 0:01:24]} 29... gxf5 {[%clk 0:01:07.4]} 30. Qd8+ {[%clk 0:01:22.2]} 30...
Ng8 {[%clk 0:01:07.6]} 31. exf5 {[%clk 0:01:17.9]} 31... h5 {[%clk 0:01:08.8]}
32. Qd1 {[%clk 0:01:02.5]} 32... Ne7 {[%clk 0:01:05]} 33. b4 {[%clk 0:00:57.3]}
33... hxg4 {[%clk 0:01:03.3]} 34. hxg4 {[%clk 0:00:59.2]} 34... Kg7 {[%clk
0:01:02.8]} 35. c4 {[%clk 0:00:53]} 35... Kf7 {[%clk 0:00:59.6]} 36. b5 {[%clk
0:00:53.9]} 36... c6 {[%clk 0:00:59.1]} 37. bxa6 {[%clk 0:00:49]} 37... bxa6
{[%clk 0:01:01]} 38. Qf3 {[%clk 0:00:44.5]} 38... Ke8 {[%clk 0:00:58.3]} 39. Qh3
{[%clk 0:00:38.8]} 39... Qe1 {[%clk 0:00:57.6]} 40. Bf2 {[%clk 0:00:25]} 40...
Qe4+ {[%clk 0:00:57.3]} 41. Qf3 {[%clk 0:00:24.5]} 41... Qxc4 {[%clk 0:00:58.2]}
42. g5 {[%clk 0:00:24.3]} 42... fxg5 {[%clk 0:00:50.2]} 43. Qh5+ {[%clk
0:00:25.5]} 43... Qf7 {[%clk 0:00:41.1]} 44. Qxg5 {[%clk 0:00:26.3]} 44... Qxf5
{[%clk 0:00:39]} 45. Qc1 {[%clk 0:00:23.7]} 45... Nd5 {[%clk 0:00:36.9]} 46. Bg3
{[%clk 0:00:14.1]} 46... e4 {[%clk 0:00:23.7]} 47. Qb2 {[%clk 0:00:12.2]} 47...
Ne3+ {[%clk 0:00:23.6]} 48. Kh2 {[%clk 0:00:12.7]} 48... Nf1+ {[%clk 0:00:08.9]}
49. Kg1 {[%clk 0:00:14.2]} 49... Nxg3 {[%clk 0:00:10.8]} 50. Qb8+ {[%clk
0:00:15.8]} 50... Kf7 {[%clk 0:00:12.7]} 51. Qc7+ {[%clk 0:00:16.9]} 51... Kg6
{[%clk 0:00:14.2]} 52. Qxg3+ {[%clk 0:00:18.5]} 52... Qg5 {[%clk 0:00:15.6]} 53.
Kf2 {[%clk 0:00:19.6]} 53... Qxg3+ {[%clk 0:00:16.9]} 54. Kxg3 {[%clk
0:00:21.5]} 54... Kf5 {[%clk 0:00:18.7]} 55. Kf2 {[%clk 0:00:23.4]} 55... Ke5
{[%clk 0:00:19.9]} 56. Ke3 {[%clk 0:00:24.8]} 56... Kd5 {[%clk 0:00:21.8]} 57.
Kf4 {[%clk 0:00:26.3]} 57... Kd4 {[%clk 0:00:23.1]} 0-1